Cogmind - Beta 11 @@@ ROGUE MODE // 2022.04.06 @ 20:11:19 Player: Infomantis Result: Destroyed by S-43 Plague with Heavy Machine Gun Performance ------------- Evolutions (9) 4500 Regions Visited (20) 4000 Robots Destroyed (135) 675 Value Destroyed (6410) 6410 Prototype IDs (26) 520 Alien Tech Used (1) 200 Bonus (4044) 4044 TOTAL SCORE: 20349 Bonus ------- High Alert Combat Kills 375 Follower Combat Kills 422 Met Warlord at Base 500 MAIN.C Attacked Warlord 500 Met Warlord at Research 2000 Scanned by Researcher 500 Friendly Fire -253 Cogmind --------- Core Integrity 0/1600 Matter 76/300 Energy 100/100 System Corruption 24% Temperature Cool (0) Movement Core (50) Location -1/Access Parts ------- > --- POWER (2) -------- (None) > --- PROPULSION (6) --- (None) > --- UTILITY (14) ----- Advanced Target Analyzer Advanced Target Analyzer > --- WEAPON (3) ------- (None) > --- INVENTORY (5) ---- Quantum Reactor Medium Storage Unit Cooled Proton Cannon Fusion Bomb Launcher Phasing Sabre Peak State ------------ > --- POWER ------------ Light Quantum Reactor > --- PROPULSION ------- Enhanced Armored Medium Treads Biometal Medium Treads Biometal Heavy Treads Advanced Heavy Siege Treads > --- UTILITY ---------- Medium Storage Unit Enhanced Optical Array Improved Targeting Computer Advanced Targeting Computer Advanced Targeting Computer Improved Target Analyzer Advanced Target Analyzer Phase Armor Improved Hacking Suite Advanced Hacking Suite Advanced Hacking Suite Improved System Guard > --- WEAPON ----------- Enhanced Nova Cannon Hardcell Cannon > --- INVENTORY -------- Biometal Heavy Treads Advanced Heavy Siege Treads High-density Centrium Wheel Enhanced Quantum Rifle Fusion Bomb Launcher Phasing Sabre [Rating: 161] Favorites ----------- Power Light Nuclear Core Engine Light Ion Engine Power Core Light Nuclear Core Reactor Light Quantum Reactor Propulsion Medium Treads Treads Medium Treads Leg Aluminum Leg Wheel Armored Huge Wheel Hover Unit Antigrav System Flight Unit VTOL Module Utility Advanced Targeting Computer Device Advanced Heat Sink Storage Large Storage Unit Processor Advanced Targeting Computer Hackware Advanced Hacking Suite Protection Hardened Medium Armor Plating Artifact Phase Armor Weapon Scythe Energy Gun Small Laser Energy Cannon Enhanced Nova Cannon Ballistic Gun Enhanced Autogun Ballistic Cannon Hardcell Cannon Launcher Advanced EMP Blaster Slashing Weapon Scythe Special Melee Weapon Dirty Datajack Build | -11 -10 -9 -8 -8 -8 -6 -6 -6 -5 -5 -5 -4 -4 -4 -4 -3 -3 -2 -2 -1 ------- Run | Scr Mat Mat Mat Sto Rec Fac Low Low Fac Upp Upp Fac Upp Upp War Pro Res Res Qua Acc Slots Evolved 18 | . . 2 2 . . 4 . . 2 . . 2 . . . . 2 2 . 2 Power 1 | . . . . . . 1 . . . . . . . . . . . . . . Propulsion 4 | . . 1 1 . . 1 . . . . . 1 . . . . . . . . Utility 12 | . . 1 1 . . 2 . . 2 . . 1 . . . . 2 2 . 1 Weapon 1 | . . . . . . . . . . . . . . . . . . . . 1 Parts Attached 277 | 7 10 5 29 13 . 44 6 . 43 6 . 39 3 3 6 1 4 18 27 13 Power 39 | 1 1 . 3 1 . 9 3 . 3 1 . 7 . 1 1 . . 2 5 1 Engine 9 | 1 1 . . . . 6 . . 1 . . . . . . . . . . . Core 20 | . . . 3 1 . 3 2 . 1 1 . 7 . 1 1 . . . . . Reactor 10 | . . . . . . . 1 . 1 . . . . . . . . 2 5 1 Propulsion 103 | 2 5 2 11 5 . 19 . . 16 . . 14 . 1 1 . 2 9 11 5 Treads 30 | . . . 5 1 . 7 . . 5 . . 1 . . . . . 5 3 3 Leg 37 | 2 5 2 6 4 . 8 . . 5 . . 3 . . . . . . 2 . Wheel 8 | . . . . . . 2 . . 4 . . . . . . . 1 . . 1 Hover 17 | . . . . . . 1 . . 2 . . 4 . . . . 1 2 6 1 Flight 11 | . . . . . . 1 . . . . . 6 . 1 1 . . 2 . . Utility 67 | 2 2 2 8 1 . 12 2 . 14 2 . 7 1 1 1 . 2 4 6 . Device 25 | 1 . 1 4 . . 6 1 . 7 . . . . 1 1 . . 1 2 . Storage 9 | 1 1 1 . . . 2 . . 2 . . 1 . . . . . 1 . . Processor 18 | . 1 . 2 . . 2 . . 5 1 . 4 1 . . . . . 2 . Hackware 6 | . . . . . . . . . . . . 2 . . . . 2 1 1 . Protection 8 | . . . 2 1 . 2 1 . . 1 . . . . . . . 1 . . Artifact 1 | . . . . . . . . . . . . . . . . . . . 1 . Weapon 68 | 2 2 1 7 6 . 4 1 . 10 3 . 11 2 . 3 1 . 3 5 7 Energy Gun 23 | 1 2 . 3 . . 2 . . 3 1 . 7 1 . . . . . 2 1 Energy Cannon 9 | . . . 2 . . . . . 2 . . . . . . . . 1 . 4 Ballistic Gun 16 | 1 . 1 2 4 . 1 1 . 2 . . 2 . . . . . 1 1 . Ballistic Cannon 1 | . . . . . . . . . . . . . . . . . . . 1 . Launcher 1 | . . . . 1 . . . . . . . . . . . . . . . . Special Weapon . | . . . . . . . . . . . . . . . . . . . . . Impact Weapon . | . . . . . . . . . . . . . . . . . . . . . Slashing Weapon 16 | . . . . 1 . 1 . . 3 2 . 2 1 . 2 1 . . 1 2 Piercing Weapon . | . . . . . . . . . . . . . . . . . . . . . Special Melee Weapon 2 | . . . . . . . . . . . . . . . 1 . . 1 . . Unidentified Prototypes 10 | . . . 2 2 . . 2 . . . . . . . . . 1 1 1 1 Corrupted Parts 1 | . . . . . . . . . . . . 1 . . . . . . . . System Corruption 1 | . . . . . . . . . . . . 1 . . . . . . . . Parts Lost 156 | . 5 1 13 . . 32 . 1 30 . . 25 1 1 3 . . . 30 14 Power 24 | . 1 . 1 . . 8 . . 3 . . 5 . . 1 . . . 5 . Propulsion 67 | . 1 . 7 . . 14 . . 13 . . 12 . 1 2 . . . 10 7 Utility 32 | . 1 . 3 . . 7 . . 6 . . . . . . . . . 10 5 Weapon 33 | . 2 1 2 . . 3 . 1 8 . . 8 1 . . . . . 5 2 Highest Loss Streak 13 | . 5 1 6 . . 9 . 1 10 . . 13 1 1 3 . . . 12 8 To Critical Strikes 1 | . . . . . . . . . . . . 1 . . . . . . . . Average Slot Usage (%) 81 | . 91 87 94 100 100 85 62 66 71 78 88 88 84 87 87 78 81 86 75 28 Engine 1 | . 10 11 2 . . 4 . . . . . . . . . . . . . . Core 4 | . . . 6 9 9 4 6 6 3 3 5 8 10 10 9 5 4 1 . . Reactor 1 | . . . . . . . . . 2 . . . . . . . . 5 4 1 Treads 10 | . . . 13 18 18 17 . . . 29 29 16 . . . . . 9 13 3 Leg 8 | . 27 28 20 18 18 10 . . 6 . . 3 . . . . . . . . Hover 2 | . . . . . . . 6 6 5 . . 1 . . . . 2 7 1 4 Flight 2 | . . . . . . . 6 6 1 . . 5 21 24 20 15 14 2 . . Device 6 | . 8 5 8 9 9 9 13 13 11 . . . . 5 5 5 4 2 1 . Storage 5 | . 14 11 9 9 9 6 . . 8 . . 3 . . . . . 3 3 . Processor 18 | . 2 11 9 9 9 12 6 6 15 35 35 34 36 36 36 36 33 30 27 12 Hackware 2 | . . . . . . . . . . . . 4 10 5 5 5 11 14 11 4 Protection 3 | . . . 6 9 9 3 5 6 . 1 5 1 . . . . . 1 1 . Energy Gun 2 | . 17 19 3 3 . 3 . . . 3 5 2 4 . . . . . 1 . Energy Cannon 1 | . . . 6 3 . . . . . . . . . . . . . 3 2 1 Ballistic Gun 4 | . 8 1 7 9 18 8 3 6 1 . . 3 . . . . . 1 1 . Slashing Weapon 1 | . . . . . . . 6 6 3 3 5 3 . 5 5 5 4 . . . Naked Turns . | . . . . . . . . . . . . . . . . . . . . . Heaviest Build 88 | 12 19 30 40 44 41 56 18 18 60 26 26 40 15 15 16 13 13 61 88 42 Greatest Support 190 | 20 20 30 48 50 50 70 28 28 56 28 28 56 16 16 16 13 13 182 190 44 Greatest Overweight (x) 15 | 1 1 . 2 . . 2 . . 15 . . 3 . . 5 . . 2 2 1 Average Overweight (x) . | . . . . . . . . . . . . . . . . . . . . . Largest Inventory Capacity 15 | 8 10 15 15 15 15 15 5 5 15 5 5 15 5 5 5 5 5 10 10 5 Average Capacity 10 | 7 9 11 15 15 15 14 5 5 11 5 5 11 5 5 5 5 5 9 9 5 Most Carried 15 | 7 10 15 15 15 15 15 5 5 15 5 3 15 5 5 5 5 5 10 10 5 Average Carried 9 | 3 9 10 14 14 15 14 2 5 7 3 3 8 4 5 4 4 4 8 7 4 Final Capacity 15 | 8 10 15 15 15 15 5 5 5 5 5 5 5 5 5 5 5 5 10 5 5 Final Carried 15 | 7 9 15 15 15 15 5 5 5 5 3 3 5 5 5 5 5 5 10 5 5 Class Distribution -------------------- 38% | Scavenger-Mutant 18% | Mutant 14% | Hacker-Mutant 10% | Commander-Mutant 9% | Scavenger-Assassin 7% | Scavenger-Sprinter Dominant Class ---------------- Mutant | -10/Materials Scavenger-Mutant | -9/Materials Scavenger-Mutant | -8/Materials Commander-Mutant | -8/Storage Commander-Mutant | -8/Recycling Scavenger-Mutant | -6/Factory Scavenger-Assassin | -6/Lower Caves Scavenger-Assassin | -6/Lower Caves Scavenger-Mutant | -5/Factory Mutant | -5/Upper Caves Mutant | -5/Upper Caves Scavenger-Mutant | -4/Factory Scavenger-Sprinter | -4/Upper Caves Scavenger-Sprinter | -4/Upper Caves Scavenger-Sprinter | -4/Warlord Scavenger-Sprinter | -3/Proximity Caves Hacker-Sprinter | -3/Research Hacker-Mutant | -2/Research Hacker-Mutant | -2/Quarantine Mutant | -1/Access Resources | -11 -10 -9 -8 -8 -8 -6 -6 -6 -5 -5 -5 -4 -4 -4 -4 -3 -3 -2 -2 -1 ----------- Run | Scr Mat Mat Mat Sto Rec Fac Low Low Fac Upp Upp Fac Upp Upp War Pro Res Res Qua Acc Matter Collected 3674 | 266 169 93 357 193 65 530 61 38 354 126 . 509 30 10 55 20 40 180 578 . Remotely . | . . . . . . . . . . . . . . . . . . . . . Salvage Created 6666 | 136 427 188 938 46 143 933 . . 965 90 . 870 . 25 . . 140 . 1765 . Parts 320 | 5 22 14 42 1 10 49 . . 54 4 . 53 . 1 . . 4 . 57 4 Haulers Intercepted . | . . . . . . . . . . . . . . . . . . . . . Recyclers Shooed 7 | . . . 1 . . 1 . . 2 . . 3 . . . . . . . . Parts Field Recycled . | . . . . . . . . . . . . . . . . . . . . . Retrieved Matter . | . . . . . . . . . . . . . . . . . . . . . Parts Self-Destructed 18 | . . . . . . . . . . . . . . 2 16 . . . . . Prevented . | . . . . . . . . . . . . . . . . . . . . . Kills | -11 -10 -9 -8 -8 -8 -6 -6 -6 -5 -5 -5 -4 -4 -4 -4 -3 -3 -2 -2 -1 ------- Run | Scr Mat Mat Mat Sto Rec Fac Low Low Fac Upp Upp Fac Upp Upp War Pro Res Res Qua Acc Combat Hostiles Destroyed 122 | . 10 4 17 1 . 26 . . 17 . . 22 . 1 . . . . 24 . Melee 17 | . . . . . . . . . 5 . . 11 . 1 . . . . . . Guns 73 | . 10 4 10 1 . 26 . . 8 . . 11 . . . . . . 3 . Cannons 31 | . . . 7 . . . . . 3 . . . . . . . . . 21 . Classes Destroyed 15 | 2 1 1 2 . 1 6 . . 1 . . . . . . . . . 1 . Worker 4 | . . . . . . . . . 2 . . . . . . . . . 2 . Builder 1 | . . . . . . 1 . . . . . . . . . . . . . . Tunneler 3 | 2 . . . . . . . . . . . . . . . . . . . 1 Recycler 4 | 1 . . . . 2 . . . . . . . . . . . 1 . . . Watcher 2 | . . . 1 . . . . . . . . 1 . . . . . . . . Swarmer 24 | . . . . . . 5 . . 4 . . 14 . 1 . . . . . . Cutter 3 | . . . . . . 3 . . . . . . . . . . . . . . Grunt 46 | . 10 2 11 . . 4 . . 5 . . 2 . . . . . . 12 . Protector 1 | . . . . . 1 . . . . . . . . . . . . . . . Researcher 3 | . . . . . . . . . . . . . . . . . . . 3 . Sentry 13 | . . 2 5 1 . 1 . . 3 1 . . . . . . . . . . Hunter 14 | . . . 1 . . 4 . . 3 . . . . . . . . . 6 . Programmer 16 | . . . . . . 2 . . 2 . . 6 . . . . . . 6 . Heavy 1 | . . . . . . 1 . . . . . . . . . . . . . . Assembled 6 | . . . . . . 6 . . . . . . . . . . . . . . Best Kill Streak 10 | 3 10 2 4 1 2 4 . . 5 . . 9 . 1 . . 1 . 6 1 Combat Bots Only 10 | . 10 2 4 1 . 4 . . 5 . . 9 . 1 . . . . 5 . Max Kills in Single Turn 2 | 1 1 1 1 1 1 1 . . 1 1 . 1 . 1 . . 1 . 2 1 Gunslinging . | . . . . . . . . . . . . . . . . . . . . . Exploded . | . . . . . . . . . . . . . . . . . . . . . Melee 1 | . . . . . . . . . 1 . . 1 . 1 . . . . . . Uniques/NPCs Destroyed . | . . . . . . . . . . . . . . . . . . . . . Combat | -11 -10 -9 -8 -8 -8 -6 -6 -6 -5 -5 -5 -4 -4 -4 -4 -3 -3 -2 -2 -1 -------- Run | Scr Mat Mat Mat Sto Rec Fac Low Low Fac Upp Upp Fac Upp Upp War Pro Res Res Qua Acc Damage Taken 26405 | . 680 249 1734 180 . 4705 . 97 3769 139 . 2587 117 64 189 22 . . 7638 4235 Core 5198 | . 139 43 262 . . 684 . 18 912 . . 364 47 . 47 22 . . 1039 1621 Absorbed by Shields 293 | . . . . . . 129 . . 164 . . . . . . . . . . . Redirected to Core 372 | . . . . . . . . . . . . . . . . . . . 372 . Core Remaining (%) 55 | 100 44 89 . . 52 . . 17 . . 8 . . . . 58 100 . 28 . Volleys Fired 436 | 13 35 12 66 8 3 86 . . 46 8 . 41 1 . . . . . 108 9 Largest 2 | 2 2 2 2 2 2 2 . . 2 1 . 2 1 . . . . . 2 2 Hottest 185 | 60 65 105 120 60 53 124 . . 111 70 . 125 65 . . . . . 185 80 Shots Fired 747 | 26 60 18 121 14 9 160 . . 66 8 1 62 1 . . . . . 189 12 Gun 538 | 26 60 18 73 13 9 160 . . 49 8 1 62 1 . . . . . 52 6 Cannon 209 | . . . 48 1 . . . . 17 . . . . . . . . . 137 6 Launcher . | . . . . . . . . . . . . . . . . . . . . . Special . | . . . . . . . . . . . . . . . . . . . . . Kinetic 368 | 13 26 3 51 13 9 75 . . 43 . . 28 . . . . . . 107 . Thermal 340 | 13 34 15 70 1 . 85 . . 15 . . 20 . . . . . . 81 6 Explosive . | . . . . . . . . . . . . . . . . . . . . . Electromagnetic 39 | . . . . . . . . . 8 8 1 14 1 . . . . . 1 6 Robot Hit Streak 26 | 4 11 4 17 8 6 23 . . 12 11 . 26 . . . . . . 18 5 Robot Miss Streak 4 | 3 2 1 2 1 2 4 . . 4 1 . 1 . . . . . . 2 1 Penetration Max 1 | . . . . . . . . . 1 . . . . . . . . . 1 . Secondary Targets 6 | . . . . . . 5 . . . . . 1 . . . . . . . . Max Gunslinging Chain 1 | . . . . . . 1 . . . . . 1 . . . . . . . . Shots Hit Robots 629 | 11 47 13 98 11 3 133 . . 75 7 . 74 . 1 1 . 1 . 144 10 Core Hits 279 | 4 21 7 44 2 3 60 . . 34 8 . 32 . 1 . . 1 . 58 4 Critical Kills 9 | . . . . . . . . . 4 . . 2 . . . . . . 3 . Critical Parts Destroyed 10 | . . . . 1 . . . . 2 . . 3 . . . . . . 4 . Critical Strikes 37 | . . . . 1 . 2 . . 9 . . 7 . . . . . . 17 1 Burn 2 | . . . . . . 2 . . . . . . . . . . . . . . Meltdown 3 | . . . . . . . . . 1 . . . . . . . . . 2 . Destroy 16 | . . . . 1 . . . . 5 . . 5 . . . . . . 5 . Blast 10 | . . . . . . . . . . . . . . . . . . . 10 . Sever 6 | . . . . . . . . . 3 . . 2 . . . . . . . 1 Melee Attacks 81 | . . . . 1 . . . . 33 . . 29 . 3 1 . 2 . 9 3 Impact . | . . . . . . . . . . . . . . . . . . . . . Slashing 80 | . . . . 1 . . . . 33 . . 29 . 3 . . 2 . 9 3 Piercing 1 | . . . . . . . . . . . . . . . 1 . . . . . Sneak Attacks 4 | . . . . . . . . . 2 . . . . . 1 . 1 . . . Combat Hostiles . | . . . . . . . . . . . . . . . . . . . . . Follow-up Attacks . | . . . . . . . . . . . . . . . . . . . . . Damage Inflicted 15144 | 135 585 167 1529 212 112 2425 . . 2057 114 . 2060 . 42 4 . 122 . 5157 423 Guns 7858 | 135 585 167 769 212 74 2400 . . 797 114 . 1304 . . . . . . 1147 154 Cannons 5169 | . . . 749 . . . . . 387 . . . . . . . . . 4004 29 Explosions 88 | . . . . . . . . . . . . . . . . . . . . 88 Melee 1810 | . . . . . . . . . 873 . . 700 . 42 4 . 122 . . 69 Ramming 219 | . . . 11 . 38 25 . . . . . 56 . . . . . . 6 83 Kinetic 5966 | 67 228 31 534 212 74 1074 . . 703 . . 404 . . . . . . 2639 . Thermal 6572 | 68 357 136 984 . . 1326 . . 341 . . 606 . . . . . . 2512 242 Explosive . | . . . . . . . . . . . . . . . . . . . . . Electromagnetic 577 | . . . . . . . . . 140 114 . 294 . . . . . . . 29 Impact . | . . . . . . . . . . . . . . . . . . . . . Slashing 1806 | . . . . . . . . . 873 . . 700 . 42 . . 122 . . 69 Piercing 4 | . . . . . . . . . . . . . . . 4 . . . . . Highest Corruption 24 | . . . 1 2 3 2 2 2 11 11 11 14 14 2 2 . . . . 24 Average Corruption 4 | . . . 1 1 2 1 2 2 5 11 11 9 3 2 2 . . . . 14 Corruption Purged . | . . . . . . . . . . . . . . . . . . . . . Corruption Blocked . | . . . . . . . . . . . . . . . . . . . . . Effects 110 | . . . 2 6 14 4 6 1 27 14 4 15 2 . . . . . . 15 Message Errors 27 | . . . 1 2 3 2 . 1 11 1 1 3 1 . . . . . . 1 Matter Fused 20 | . . . 1 2 4 . 2 . 1 3 . 4 . . . . . . . 3 Heat Flow Errors 15 | . . . . . . 1 1 . 5 4 1 2 . . . . . . . 1 Energy Discharges 12 | . . . . 1 2 1 1 . 3 . . 1 . . . . . . . 3 Parts Rejected 1 | . . . . . . . . . . 1 . . . . . . . . . . Data Loss (minor) 11 | . . . . . 1 . . . 3 2 . 1 1 . . . . . . 3 Data Loss (major) 9 | . . . . . 1 . 1 . 3 1 1 2 . . . . . . . . Misfires 6 | . . . . . 3 . . . 1 1 1 . . . . . . . . . Alerts 3 | . . . . . . . 1 . . . . 1 . . . . . . . 1 Misdirections 4 | . . . . . . . . . . . . 1 . . . . . . . 3 Weapon Failures 2 | . . . . 1 . . . . . 1 . . . . . . . . . . Overload Shots . | . . . . . . . . . . . . . . . . . . . . . Overflow Damage 134 | . . . 3 . . . . . 62 . . 18 . . . . . . 43 8 Projectiles 46 | . . . 3 . . . . . . . . . . . . . . . 43 . Explosions 8 | . . . . . . . . . . . . . . . . . . . . 8 Melee 80 | . . . . . . . . . 62 . . 18 . . . . . . . . Knockbacks 32 | . . . . . . . . . . . . 2 . . . . . . 30 . Impact 2 | . . . . . . . . . . . . 2 . . . . . . . . Kinetic 29 | . . . . . . . . . . . . . . . . . . . 29 . Secondary 1 | . . . . . . . . . . . . . . . . . . . 1 . Self-Inflicted Damage 97 | . . . . . . . . . . . . . . . . . . . . 97 Shots 1 | . . . . . . . . . . . . . . . . . . . . 1 Rammed 26 | . . . 1 . 6 . . . . . . . . . . . . . 2 17 Targets Rammed 45 | . . . 1 . 7 3 . . . . . 13 . . . . . . 4 17 Kicked 18 | . . . . . . 3 . . . . . 13 . . . . . . 2 . Crushed 1 | . . . . . 1 . . . . . . . . . . . . . . . Highest Temperature 459 | . 174 36 135 15 . 371 182 5 459 258 93 383 14 . . . . . 6 150 Average Temperature 92 | . 75 19 42 9 . 105 94 5 148 77 35 103 9 . . . . . 2 74 Received Heat Transfer 3762 | . 402 81 828 99 . 661 . 48 436 18 . 112 51 . 18 . . . 828 180 Effects 6 | . . . . . . 1 . . 2 1 . 2 . . . . . . . . Shutdowns 1 | . . . . . . . . . 1 . . . . . . . . . . . Energy Bleed 2 | . . . . . . 1 . . 1 . . . . . . . . . . . Interference 3 | . . . . . . . . . . 1 . 2 . . . . . . . . Siege Activations . | . . . . . . . . . . . . . . . . . . . . . Robots Corrupted 2 | . . . . . . . . . . 1 . 1 . . . . . . . . Combat Hostiles . | . . . . . . . . . . . . . . . . . . . . . Parts Fried 2 | . . . . . . . . . 1 1 . . . . . . . . . . Impact Corruptions . | . . . . . . . . . . . . . . . . . . . . . Robots Melted 3 | . . . . . . . . . 1 . . . . . . . . . 2 . Combat Hostiles 1 | . . . . . . . . . 1 . . . . . . . . . . . Parts Melted 29 | 1 1 . 2 3 . 13 . . 1 . . 4 . . . . . . 4 . Heat Transferred 10159 | 150 821 311 2115 . . 2923 . . 496 . . 740 . . . . . . 2405 198 Parts Sabotaged 1 | . . . . . . . . . . . . . . . 1 . . . . . Parts Stolen . | . . . . . . . . . . . . . . . . . . . . . Parts Stripped . | . . . . . . . . . . . . . . . . . . . . . Power Chain Reactions . | . . . . . . . . . . . . . . . . . . . . . Missiles Intercepted . | . . . . . . . . . . . . . . . . . . . . . Alert | -11 -10 -9 -8 -8 -8 -6 -6 -6 -5 -5 -5 -4 -4 -4 -4 -3 -3 -2 -2 -1 ------- Run | Scr Mat Mat Mat Sto Rec Fac Low Low Fac Upp Upp Fac Upp Upp War Pro Res Res Qua Acc Peak Influence 1063 | 15 224 255 296 568 481 1063 . . 167 . . 249 . . . . 127 71 478 700 Initial 1063 | . 9 94 107 84 221 1063 . . 79 . . 11 . . . . . 71 . 160 Average 270 | 5 114 163 182 269 317 783 . . 75 . . 97 . . . . 41 70 275 375 Maximum Alert Level 3 | . 1 1 1 2 2 3 . . . . . 1 . . . . . . 2 3 Low Security (%) 53 | 100 73 81 53 47 3 . . . 100 . . 94 . . . . 100 100 31 13 Level 1 24 | . 26 18 46 28 81 . . . . . . 5 . . . . . . 44 50 Level 2 14 | . . . . 23 14 53 . . . . . . . . . . . . 23 32 Level 3 7 | . . . . . . 46 . . . . . . . . . . . . . 4 Level 4 . | . . . . . . . . . . . . . . . . . . . . . Level 5 . | . . . . . . . . . . . . . . . . . . . . . High Security . | . . . . . . . . . . . . . . . . . . . . . Max Security . | . . . . . . . . . . . . . . . . . . . . . Squads Dispatched 30 | . 2 1 2 1 . 6 . . 2 . . 2 . . . . 1 . 10 3 Investigation 4 | . . . . 1 . 1 . . . . . . . . . . . . . 2 Extermination 8 | . . . . . . 2 . . 1 . . 2 . . . . . . 2 1 Reinforcement 18 | . 2 1 2 . . 3 . . 1 . . . . . . . 1 . 8 . Assault . | . . . . . . . . . . . . . . . . . . . . . Garrison . | . . . . . . . . . . . . . . . . . . . . . Intercept . | . . . . . . . . . . . . . . . . . . . . . Searches Triggered 3 | . . . . . . 3 . . . . . . . . . . . . . . Construction Impeded . | . . . . . . . . . . . . . . . . . . . . . Haulers Reinforced . | . . . . . . . . . . . . . . . . . . . . . Active Scanning Responses . | . . . . . . . . . . . . . . . . . . . . . Cargo Convoy Interrupts . | . . . . . . . . . . . . . . . . . . . . . Stealth | -11 -10 -9 -8 -8 -8 -6 -6 -6 -5 -5 -5 -4 -4 -4 -4 -3 -3 -2 -2 -1 --------- Run | Scr Mat Mat Mat Sto Rec Fac Low Low Fac Upp Upp Fac Upp Upp War Pro Res Res Qua Acc Distress Signals 19 | . 4 . 3 1 . 1 . . . . . 1 . . . . 1 3 2 3 Communications Jammed . | . . . . . . . . . . . . . . . . . . . . . Distress Signals . | . . . . . . . . . . . . . . . . . . . . . Times Spotted 325 | . 16 6 26 12 14 53 . 3 30 1 . 30 10 5 10 4 12 . 46 47 Peak Tracking Total 20 | . 8 2 5 5 3 15 . 3 7 1 . 10 5 7 8 4 10 . 7 20 Tactical Retreats 25 | . . . . 1 . 5 . . . . . 1 2 3 . . 1 . 4 8 Traps | -11 -10 -9 -8 -8 -8 -6 -6 -6 -5 -5 -5 -4 -4 -4 -4 -3 -3 -2 -2 -1 ------- Run | Scr Mat Mat Mat Sto Rec Fac Low Low Fac Upp Upp Fac Upp Upp War Pro Res Res Qua Acc Traps Triggered 5 | . . . 1 1 . 2 . . . . . . . . . . . . . 1 Indirectly . | . . . . . . . . . . . . . . . . . . . . . Trap Hack Attempts . | . . . . . . . . . . . . . . . . . . . . . Triggered . | . . . . . . . . . . . . . . . . . . . . . Disarmed . | . . . . . . . . . . . . . . . . . . . . . Reprogrammed . | . . . . . . . . . . . . . . . . . . . . . Reused . | . . . . . . . . . . . . . . . . . . . . . Traps Extracted . | . . . . . . . . . . . . . . . . . . . . . Installed . | . . . . . . . . . . . . . . . . . . . . . Triggered 5 | . . . . . . . . . . . . . . . 5 . . . . . Machines | -11 -10 -9 -8 -8 -8 -6 -6 -6 -5 -5 -5 -4 -4 -4 -4 -3 -3 -2 -2 -1 ---------- Run | Scr Mat Mat Mat Sto Rec Fac Low Low Fac Upp Upp Fac Upp Upp War Pro Res Res Qua Acc Machines Disabled 8 | . . . . 1 1 . . . 1 . . . 1 . . . . . 3 1 Max in Single Turn 1 | . . . . 1 . . . . 1 . . . 1 . . . . . 1 1 Garrison Access 2 | . . . . . . . . . 2 . . . . . . . . . . . Energy Cycler 1 | . . . . . . . . . . . . . . . . . . . . 1 Machines Sabotaged . | . . . . . . . . . . . . . . . . . . . . . Garrisons Compromised 1 | . . . . . . 1 . . . . . . . . . . . . . . Overloaded Fab Kills . | . . . . . . . . . . . . . . . . . . . . . Hacking | -11 -10 -9 -8 -8 -8 -6 -6 -6 -5 -5 -5 -4 -4 -4 -4 -3 -3 -2 -2 -1 --------- Run | Scr Mat Mat Mat Sto Rec Fac Low Low Fac Upp Upp Fac Upp Upp War Pro Res Res Qua Acc Machines Accessed 57 | . 1 3 4 6 10 5 . . 8 . . 1 1 . 11 . 1 . 3 3 Terminals 33 | . 1 3 4 6 4 3 . . 4 . . 1 1 . . . . . 3 3 Fabricators 3 | . . . . . . 1 . . 2 . . . . . . . . . . . Repair Stations . | . . . . . . . . . . . . . . . . . . . . . Recycling Units 7 | . . . . . 6 . . . . . . . . . . . 1 . . . Scanalyzers 1 | . . . . . . 1 . . . . . . . . . . . . . . Garrison Access 2 | . . . . . . . . . 2 . . . . . . . . . . . Total Hacks 127 | . 2 9 6 18 21 9 . . 18 . . 3 1 . 23 . 1 . 7 9 Successful 79 | . 1 5 5 6 14 3 . . 9 . . 1 1 . 23 . 1 . 6 4 Failed 48 | . 1 4 1 12 7 6 . . 9 . . 2 . . . . . . 1 5 Catastrophic 3 | . . . . . 1 . . . 2 . . . . . . . . . . . Database Lockouts . | . . . . . . . . . . . . . . . . . . . . . Manual 27 | . . 1 . 3 9 1 . . 9 . . . . . . . . . 2 2 Terminals 86 | . 2 9 6 18 14 7 . . 10 . . 3 1 . . . . . 7 9 Fabricators 6 | . . . . . . 1 . . 5 . . . . . . . . . . . Repair Stations . | . . . . . . . . . . . . . . . . . . . . . Recycling Units 8 | . . . . . 7 . . . . . . . . . . . 1 . . . Scanalyzers 1 | . . . . . . 1 . . . . . . . . . . . . . . Garrison Access 3 | . . . . . . . . . 3 . . . . . . . . . . . Terminal Hacks 61 | . 1 5 5 6 7 2 . . 2 . . 1 1 . 23 . . . 6 2 Record 25 | . 1 . . . . . . . . . . . 1 . 22 . . . . 1 Part Schematic 2 | . . 1 . 1 . . . . . . . . . . . . . . . . Robot Analysis 3 | . . 1 . . 1 . . . . . . . . . . . . . . 1 Prototype ID Bank 5 | . . 1 1 1 1 . . . . . . . . . . . . . 1 . Open Door 2 | . . . . 1 . . . . . . . . . . 1 . . . . . Level Access Points 1 | . . . . . . . . . . . . . . . . . . . 1 . Branch Access Points 3 | . . . . . . 1 . . 1 . . 1 . . . . . . . . Machine Index 1 | . . . . . . . . . . . . . . . . . . . 1 . Terminal Index 1 | . . 1 . . . . . . . . . . . . . . . . . . Recycling Unit Index 2 | . . . 1 . 1 . . . . . . . . . . . . . . . Alert Level 4 | . . . . . 2 1 . . . . . . . . . . . . 1 . Unreport Threat 1 | . . . . . 1 . . . . . . . . . . . . . . . Locate Traps 4 | . . . 1 3 . . . . . . . . . . . . . . . . Dispatch Records 1 | . . 1 . . . . . . . . . . . . . . . . . . Security Status 1 | . . . 1 . . . . . . . . . . . . . . . . . Patrol Status 1 | . . . 1 . . . . . . . . . . . . . . . . . Registered Prototypes 1 | . . . . . . . . . . . . . . . . . . . 1 . Zone Layout 3 | . . . . . 1 . . . 1 . . . . . . . . . 1 . Fabricator Hacks 3 | . . . . . . 1 . . 2 . . . . . . . . . . . Network Status 2 | . . . . . . . . . 2 . . . . . . . . . . . Build 1 | . . . . . . 1 . . . . . . . . . . . . . . Repair Station Hacks . | . . . . . . . . . . . . . . . . . . . . . Recycling Unit Hacks 1 | . . . . . . . . . . . . . . . . . 1 . . . Retrieve Components 1 | . . . . . . . . . . . . . . . . . 1 . . . Scanalyzer . | . . . . . . . . . . . . . . . . . . . . . Garrison Access Hacks 2 | . . . . . . . . . 2 . . . . . . . . . . . Seal Access 2 | . . . . . . . . . 2 . . . . . . . . . . . Unauthorized Hacks 12 | . . . . . 7 . . . 3 . . . . . . . . . . 2 Terminals 5 | . . . . . 1 . . . 2 . . . . . . . . . . 2 Assimilate 1 | . . . . . . . . . . . . . . . . . . . . 1 Botnet 4 | . . . . . 1 . . . 2 . . . . . . . . . . 1 Fabricators 1 | . . . . . . . . . 1 . . . . . . . . . . . Report 1 | . . . . . . . . . 1 . . . . . . . . . . . Repair Stations . | . . . . . . . . . . . . . . . . . . . . . Recycling Units 6 | . . . . . 6 . . . . . . . . . . . . . . . Tunnel 6 | . . . . . 6 . . . . . . . . . . . . . . . Scanalyzers . | . . . . . . . . . . . . . . . . . . . . . Garrison Access . | . . . . . . . . . . . . . . . . . . . . . Data Cores Recovered . | . . . . . . . . . . . . . . . . . . . . . Used . | . . . . . . . . . . . . . . . . . . . . . Hacking Detections 25 | . . 1 2 4 4 4 . . 5 . . 1 . . . . . . 1 3 Full Trace Events 8 | . . . . 1 4 1 . . . . . . . . . . . . . 2 Feedback Events 2 | . . . . . 1 . . . . . . . . . . . . . . 1 Corruption 2 | . . . . . 1 . . . . . . . . . . . . . . 1 Feedback Blocked . | . . . . . . . . . . . . . . . . . . . . . Robot Schematics Acquired 3 | . . . . . . . . . . . . . . . . . . . 3 . Robots Built . | . . . . . . . . . . . . . . . . . . . . . Authchips . | . . . . . . . . . . . . . . . . . . . . . Time . | . . . . . . . . . . . . . . . . . . . . . Total Robot Build Rating . | . . . . . . . . . . . . . . . . . . . . . Part Schematics Acquired 10 | . . 1 . 1 . . . . . . . . . . . . . . 8 . Parts Built 2 | . . . . . . 2 . . . . . . . . . . . . . . Authchips . | . . . . . . . . . . . . . . . . . . . . . Time 95 | . . . . . . 95 . . . . . . . . . . . . . . Total Part Build Rating 10 | . . . . . . 10 . . . . . . . . . . . . . . Parts Repaired . | . . . . . . . . . . . . . . . . . . . . . Time . | . . . . . . . . . . . . . . . . . . . . . Parts Recycled . | . . . . . . . . . . . . . . . . . . . . . Recycled Matter . | . . . . . . . . . . . . . . . . . . . . . Retrieved Matter . | . . . . . . . . . . . . . . . . . . . . . Retrieved Components . | . . . . . . . . . . . . . . . . . . . . . Parts Scanalyzed . | . . . . . . . . . . . . . . . . . . . . . Part Schematics Acquired . | . . . . . . . . . . . . . . . . . . . . . Parts Damaged . | . . . . . . . . . . . . . . . . . . . . . Bothacking | -11 -10 -9 -8 -8 -8 -6 -6 -6 -5 -5 -5 -4 -4 -4 -4 -3 -3 -2 -2 -1 ------------ Run | Scr Mat Mat Mat Sto Rec Fac Low Low Fac Upp Upp Fac Upp Upp War Pro Res Res Qua Acc Used RIF Installer . | . . . . . . . . . . . . . . . . . . . . . Robots Hacked . | . . . . . . . . . . . . . . . . . . . . . Non-combat . | . . . . . . . . . . . . . . . . . . . . . Combat . | . . . . . . . . . . . . . . . . . . . . . Robot Hacks Applied . | . . . . . . . . . . . . . . . . . . . . . Relay Couplers Released 2 | . . . . . . . . . 2 . . . . . . . . . . . Machine Destruction 2 | . . . . . . . . . 2 . . . . . . . . . . . Fabnet Peak Effective % . | . . . . . . . . . . . . . . . . . . . . . Robots Rewired 18 | . . . . . 14 . . . . 1 . . . . 3 . . . . . Allies Hacked . | . . . . . . . . . . . . . . . . . . . . . Hacks Repelled . | . . . . . . . . . . . . . . . . . . . . . Allies | -11 -10 -9 -8 -8 -8 -6 -6 -6 -5 -5 -5 -4 -4 -4 -4 -3 -3 -2 -2 -1 -------- Run | Scr Mat Mat Mat Sto Rec Fac Low Low Fac Upp Upp Fac Upp Upp War Pro Res Res Qua Acc Total Allies 28 | . . . . 10 14 . . . . 1 . . . . 3 . . . . . Largest Group 17 | . . . . 10 17 5 . . . 1 . . . . 3 . . . . . Highest-Rated Group 217 | . . . . 173 217 73 . . . 49 . . . . 177 . . . . . Highest-Rated Ally 65 | . . . . 29 27 27 . . . 49 . . . . 65 . . . . . Total Orders 1 | . . . . . 1 . . . . . . . . . . . . . . . DROP 1 | . . . . . 1 . . . . . . . . . . . . . . . Ally Attacks 281 | . . . . 90 180 11 . . . . . . . . . . . . . . Total Damage 2067 | . . . . 1148 835 84 . . . . . . . . . . . . . . Kills 43 | . . . . 13 29 1 . . . . . . . . . . . . . . Allies Corrupted 1 | . . . . . . . . . . 1 . . . . . . . . . . Allies Melted 2 | . . . . . . . . . . . . . . . . . . 2 . . Intel | -11 -10 -9 -8 -8 -8 -6 -6 -6 -5 -5 -5 -4 -4 -4 -4 -3 -3 -2 -2 -1 ------- Run | Scr Mat Mat Mat Sto Rec Fac Low Low Fac Upp Upp Fac Upp Upp War Pro Res Res Qua Acc Robot Analysis Total 3 | . . 1 . . 1 . . . . . . . . . . . . . . 1 Derelict Logs Recovered 4 | . . . . . . . 1 . . . . . 2 1 . . . . . . Drone Launches . | . . . . . . . . . . . . . . . . . . . . . Drone Recoveries . | . . . . . . . . . . . . . . . . . . . . . Exploration | -11 -10 -9 -8 -8 -8 -6 -6 -6 -5 -5 -5 -4 -4 -4 -4 -3 -3 -2 -2 -1 ------------- Run | Scr Mat Mat Mat Sto Rec Fac Low Low Fac Upp Upp Fac Upp Upp War Pro Res Res Qua Acc Turns Passed 9476 | 144 287 225 902 388 769 1161 598 33 1374 313 103 765 197 88 302 55 72 404 867 429 Spaces Moved 7624 | 75 131 149 393 220 370 593 480 34 790 319 65 438 562 285 1036 182 191 279 320 712 Core 751 | 5 . . . . . 1 . . 21 214 . 1 . . 2 . . . 2 505 Treads 2103 | . . . 290 220 370 396 . . 1 105 65 249 . . . . . 170 237 . Legs 926 | 70 131 149 103 . . 113 . . 320 . . 12 . . . . . . 28 . Wheels 979 | . . . . . . 11 480 34 448 . . . . . . . . . . 6 Hover 381 | . . . . . . 17 . . . . . 26 . . . . . 84 53 201 Flight 2484 | . . . . . . 55 . . . . . 150 562 285 1034 182 191 25 . . Fastest Speed 26 | 50 120 120 120 152 152 35 100 100 50 50 160 26 26 26 26 29 29 29 32 40 Average Speed 91 | 117 121 120 153 154 152 133 100 100 134 86 160 111 26 26 26 29 29 125 144 50 Slowest Speed 800 | 120 190 120 260 160 152 260 100 100 800 160 160 260 26 26 300 29 29 240 270 111 Overloaded Moves . | . . . . . . . . . . . . . . . . . . . . . Propulsion Burnouts . | . . . . . . . . . . . . . . . . . . . . . Robots Hopped 20 | . . . . . . 5 . . . . . . 1 . 9 1 4 . . . Cave-ins Triggered 1 | . . . . . . . . . 1 . . . . . . . . . . . Exploration Rate (%) 35 | 4 28 16 36 36 79 22 73 5 24 55 13 9 69 63 91 40 8 10 34 32 Regions Visited 20 Branch Regions 11 Pre-discovered Areas 9 | . . . . . 6 . . . . . . . 1 . 2 . . . . . Known Exits Taken 8 | . . . . . . 1 1 1 1 . . 1 . . . . 1 1 1 . Unknown Exits Taken 12 | 1 1 1 1 1 1 . . . . 1 1 . 1 1 1 1 . . . . Scrap Searched 13 | . . . . . . . 3 1 . 1 . . 4 3 . 1 . . . . Spaces Dug 14 | . . . . . . . . . 3 . . . . . . . 1 . 9 1 Terrain Destroyed 66 | . . . . . . 1 . . 9 . . . . . . . 1 . 29 26 Melee 12 | . . . . . . . . . 3 . . . . . . . 1 . 7 1 Projectile 29 | . . . . . . 1 . . 6 . . . . . . . . . 22 . AOE 25 | . . . . . . . . . . . . . . . . . . . . 25 Terrain Rammed . | . . . . . . . . . . . . . . . . . . . . . Walls Destroyed . | . . . . . . . . . . . . . . . . . . . . . Machines Disabled . | . . . . . . . . . . . . . . . . . . . . . Actions | -11 -10 -9 -8 -8 -8 -6 -6 -6 -5 -5 -5 -4 -4 -4 -4 -3 -3 -2 -2 -1 --------- Run | Scr Mat Mat Mat Sto Rec Fac Low Low Fac Upp Upp Fac Upp Upp War Pro Res Res Qua Acc Total 9264 | 101 199 176 575 258 568 810 598 33 977 348 64 601 610 295 1051 183 200 337 514 766 Wait 398 | . 16 3 55 3 15 59 106 . 29 10 . 14 40 3 2 . 3 8 27 5 Move 7567 | 74 130 148 392 219 369 582 479 33 789 318 64 437 559 284 1019 179 183 278 319 712 Hop 17 | . . . . . . 5 . . . . . . 1 . 7 1 3 . . . Pick Up 116 | 7 3 6 14 2 . 13 4 . 22 1 . 18 2 . 2 1 2 12 6 1 Fast Attach 168 | 7 4 3 12 2 . 26 2 . 29 3 . 28 3 2 6 . 3 14 17 7 Attach 65 | . 1 . 9 . . 12 4 . 12 3 . 6 . . . 1 1 4 7 5 Detach 17 | . . . 1 . . 1 2 . 3 . . 1 . . 1 . 1 2 1 4 Swap 44 | . 5 2 8 11 . 6 . . 2 . . 5 . 1 . . . . 3 1 Drop 118 | . 5 2 17 12 . 17 1 . 12 . . 9 4 2 5 1 2 19 8 2 Fire 436 | 13 35 12 66 8 3 86 . . 46 8 . 41 1 . . . . . 108 9 Melee 81 | . . . . 1 . . . . 33 . . 29 . 3 1 . 2 . 9 3 Ram 17 | . . . . . . . . . . . . . . . . . . . . 17 Kick 18 | . . . . . . 3 . . . . . 13 . . . . . . 2 . Crush 10 | . . . 1 . 7 . . . . . . . . . . . . . 2 . Escape Stasis 5 | . . . . . . . . . . . . . . . . . . . 5 . Rewire 187 | . . . . . 174 . . . . 5 . . . . 8 . . . . . Trap . | . . . . . . . . . . . . . . . . . . . . . Miscellaneous . | . . . . . . . . . . . . . . . . . . . . . Route ------- -11/Scrapyard -10/Materials -9/Materials -8/Materials -8/Storage -8/Recycling -6/Factory (discovered 2 exits: *Low x2) -6/Lower Caves -6/Lower Caves -5/Factory (discovered 4 exits: *Upp x2 / Ext x2) -5/Upper Caves -5/Upper Caves -4/Factory (discovered 3 exits: *Upp x2 / Arm) -4/Upper Caves -4/Upper Caves (discovered 2 exits: *Res / *War) -4/Warlord -3/Proximity Caves -3/Research -2/Research (discovered 3 exits: Acc / *Qua x2) -2/Quarantine -1/Access History --------- Turn | Location | Event 29 | -11/Scrapyard | Discovered new exit (range 13) 145 | -11/Scrapyard | Entered Materials 329 | -10/Materials | Build established: Mutant 339 | -10/Materials | Core integrity fell below 50% 368 | -10/Materials | Lost 5 parts (1p1n1u2w) 378 | -10/Materials | Destroyed 10 combat bots 414 | -10/Materials | Discovered new exit (range 16) 432 | -10/Materials | Entered another Materials area 432 | -9/Materials | Evolved 2 slots: Propulsion x1, Utility x1 557 | -9/Materials | Discovered new exit (range 15) 657 | -9/Materials | Entered another Materials area 657 | -8/Materials | Evolved 2 slots: Propulsion x1, Utility x1 824 | -8/Materials | Build established: Scavenger-Mutant 863 | -8/Materials | Lost 5 parts (3n2u) 1447 | -8/Materials | Discovered new exit (range 15) 1534 | -8/Materials | Lost 6 parts (1p3n2w) 1559 | -8/Materials | Entered Storage 1611 | -8/Storage | Assisted by bots powering up and referring to "LRC-V3" 1940 | -8/Storage | Used back door to open Recycling access 1940 | -8/Storage | Discovered new exit (range 5) 1947 | -8/Storage | Entered Recycling 1947 | -8/Recycling | Accompanied by 5 allies 1970 | -8/Recycling | Spotter reported a threat 1971 | -8/Recycling | Spotter reported a threat 1980 | -8/Recycling | Spotter reported a threat 1987 | -8/Recycling | Spotter reported a threat 2023 | -8/Recycling | Spotter reported a threat 2102 | -8/Recycling | Spotter reported a threat 2105 | -8/Recycling | Spotter reported a threat 2108 | -8/Recycling | Spotter reported a threat 2132 | -8/Recycling | Spotter reported a threat 2132 | -8/Recycling | Spotter reported a threat 2165 | -8/Recycling | Spotter reported a threat 2207 | -8/Recycling | Spotter reported a threat 2250 | -8/Recycling | Build established: Commander-Mutant 2391 | -8/Recycling | Spotter reported a threat 2405 | -8/Recycling | Spotter reported a threat 2457 | -8/Recycling | Spotter reported a threat 2465 | -8/Recycling | Spotter reported a threat 2465 | -8/Recycling | Spotter reported a threat 2467 | -8/Recycling | Spotter reported a threat 2518 | -8/Recycling | Spotter reported a threat 2518 | -8/Recycling | Spotter reported a threat 2518 | -8/Recycling | Spotter reported a threat 2518 | -8/Recycling | Spotter reported a threat 2567 | -8/Recycling | Spotter reported a threat 2567 | -8/Recycling | Spotter reported a threat 2571 | -8/Recycling | Spotter reported a threat 2608 | -8/Recycling | Spotter reported a threat 2608 | -8/Recycling | Spotter reported a threat 2609 | -8/Recycling | Spotter reported a threat 2620 | -8/Recycling | Spotter reported a threat 2659 | -8/Recycling | Spotter reported a threat 2659 | -8/Recycling | Spotter reported a threat 2660 | -8/Recycling | Spotter reported a threat 2673 | -8/Recycling | Spotter reported a threat 2683 | -8/Recycling | Discovered new exit (range 8) 2704 | -8/Recycling | Spotter reported a threat 2704 | -8/Recycling | Spotter reported a threat 2711 | -8/Recycling | Spotter reported a threat 2716 | -8/Recycling | Entered Factory 2716 | -6/Factory | Accompanied by 5 allies 2716 | -6/Factory | Evolved 4 slots: Power x1, Propulsion x1, Utility x2 3015 | -6/Factory | Build established: Scavenger-Mutant 3066 | -6/Factory | Search patrols dispatched 3085 | -6/Factory | Fabricated Plasma Rifle? 3350 | -6/Factory | Found Hvy. Insulated Plating 3411 | -6/Factory | Found Prototype Device 3416 | -6/Factory | Search patrols dispatched 3417 | -6/Factory | Lost 6 parts (2p2n2u) 3654 | -6/Factory | Lost 4 parts (1p2n1u) 3753 | -6/Factory | Identified exit to Lower Caves 3761 | -6/Factory | Lost 9 parts (2p5n1u1w) 3766 | -6/Factory | Search patrols dispatched 3808 | -6/Factory | Core integrity fell below 50% 3862 | -6/Factory | Lost 8 parts (2p4n1u1w) 3865 | -6/Factory | Core integrity fell below 20% 3877 | -6/Factory | Entered Lower Caves 3877 | -6/Lower Caves | Identified Active Sensor Suite 3915 | -6/Lower Caves | Learned Factory garrison access intel 3990 | -6/Lower Caves | Encountered a Warlord checkpoint 4192 | -6/Lower Caves | Build established: Scavenger-Assassin 4460 | -6/Lower Caves | Discovered new exit (range 15) 4473 | -6/Lower Caves | Identified exit to Lower Caves 4475 | -6/Lower Caves | Entered another Lower Caves area 4498 | -6/Lower Caves | Discovered new exit (range 10) 4507 | -6/Lower Caves | Identified exit to Factory 4508 | -6/Lower Caves | Entered Factory 4508 | -5/Factory | Evolved 2 slots: Utility x2 4509 | -5/Factory | Loaded intel: 4 garrison access locations 4900 | -5/Factory | Crushed by falling debris 4931 | -5/Factory | Lost 4 parts (1n3u) 4992 | -5/Factory | Lost 3 parts (1p1n1w) 5140 | -5/Factory | Lost 3 parts (2n1w) 5406 | -5/Factory | Build established: Scavenger-Mutant 5429 | -5/Factory | Found Imp. Powered Armor 5432 | -5/Factory | Found Imp. Powered Armor 5479 | -5/Factory | Identified exit to Upper Caves 5479 | -5/Factory | Identified exit to Extension 5701 | -5/Factory | Lost 9 parts (4n2u3w) 5810 | -5/Factory | Core integrity fell below 50% 5863 | -5/Factory | Core integrity fell below 20% 5866 | -5/Factory | System corruption reached 10% 5882 | -5/Factory | Entered Upper Caves 5896 | -5/Upper Caves | Lost 10 parts (2p5n1u2w) 5921 | -5/Upper Caves | Spotted B-75 Beast 6022 | -5/Upper Caves | Attracted the attention of an 0b10 checkpoint 6109 | -5/Upper Caves | Build established: Mutant 6117 | -5/Upper Caves | Discovered new exit (range 21) 6195 | -5/Upper Caves | Entered another Upper Caves area 6275 | -5/Upper Caves | Discovered new exit (range 15) 6298 | -5/Upper Caves | Entered Factory 6298 | -4/Factory | Evolved 2 slots: Propulsion x1, Utility x1 6425 | -4/Factory | Spotted B-86 Titan 6668 | -4/Factory | Build established: Scavenger-Mutant 6864 | -4/Factory | System corruption reached 10% 6918 | -4/Factory | Lost 10 parts (2p6n2w) 7002 | -4/Factory | Destroyed 9 combat bots 7007 | -4/Factory | Lost 13 parts (2p6n5w) 7039 | -4/Factory | Identified exit to Upper Caves 7039 | -4/Factory | Identified exit to Armory 7063 | -4/Factory | Entered Upper Caves 7086 | -4/Upper Caves | Learned location of 1 exit from Research 7119 | -4/Upper Caves | Attacked by a delusional Derelict stockpiling Unaware 7229 | -4/Upper Caves | Spotted B-86 Titan 7241 | -4/Upper Caves | Learned location of Armory (-4) 7251 | -4/Upper Caves | Attracted the attention of an 0b10 checkpoint 7257 | -4/Upper Caves | Discovered new exit (range 7) 7260 | -4/Upper Caves | Entered another Upper Caves area 7268 | -4/Upper Caves | Learned 12 Research zone layouts 7268 | -4/Upper Caves | Discovered new exit (range 15) 7294 | -4/Upper Caves | Build established: Scavenger-Sprinter 7345 | -4/Upper Caves | Discovered new exit (range 17) 7348 | -4/Upper Caves | Entered Warlord 7369 | -4/Warlord | Discovered new exit (range 9) 7384 | -4/Warlord | System corruption cleaned by Quarantine Array 7492 | -4/Warlord | Warlord's base attacked by MAIN.C 7515 | -4/Warlord | Learned Testing trap positions 7515 | -4/Warlord | Learned 4 Research zone layouts 7515 | -4/Warlord | Learned 4 Access zone layouts 7515 | -4/Warlord | Learned Quarantine security intel 7515 | -4/Warlord | Learned Armory terminal intel 7529 | -4/Warlord | Found Signal Generator 7563 | -4/Warlord | Met Warlord 7628 | -4/Warlord | Opened side exit 7650 | -4/Warlord | Entered Proximity Caves 7672 | -3/Proximity Caves | Lost 3 parts (1p2n) 7704 | -3/Proximity Caves | Discovered new exit (range 4) 7705 | -3/Proximity Caves | Entered Research 7705 | -3/Research | Evolved 2 slots: Utility x2 7706 | -3/Research | Identified exit to Research 7777 | -3/Research | Entered another Research area 7777 | -2/Research | Warlord forces began assault on 0b10 7777 | -2/Research | Evolved 2 slots: Utility x2 7778 | -2/Research | Identified exit to Access 7778 | -2/Research | Identified exit to Quarantine 7859 | -2/Research | Found Antimissile System 7887 | -2/Research | Research machine network offline 7971 | -2/Research | Met up with Warlord 8022 | -2/Research | Discovered exit to Quarantine (range 14) 8091 | -2/Research | Build established: Hacker-Mutant 8181 | -2/Research | Entered Quarantine 8197 | -2/Quarantine | Found Fusion Bomb Launcher 8224 | -2/Quarantine | Scanned by Researcher 8469 | -2/Quarantine | Lost 3 parts (1p2u) 8637 | -2/Quarantine | Found Alien Artifact 8638 | -2/Quarantine | Identified Phase Armor 8767 | -2/Quarantine | Lost 6 parts (3n2u1w) 8908 | -2/Quarantine | Core integrity fell below 50% 9048 | -2/Quarantine | Entered Access 9048 | -1/Access | Evolved 2 slots: Utility x1, Weapon x1 9079 | -1/Access | Lost 12 parts (1p6n2u3w) 9138 | -1/Access | Energy Cycler disabled 9230 | -1/Access | Lost 8 parts (3n3u2w) 9232 | -1/Access | Spotted B-99 Colossus 9260 | -1/Access | System corruption reached 10% 9273 | -1/Access | Core integrity fell below 50% 9365 | -1/Access | Core integrity fell below 20% 9427 | -1/Access | Spotted B-99 Colossus 9428 | -1/Access | Spotted B-99 Colossus 9477 | -1/Access | Destroyed by S-43 Plague with Heavy Machine Gun Last Messages --------------- 09429_ Slug penetrates Fabricator. 09429_ Penetrated by Slug. 09430_ Fabricator disabled. 09443_ System corrupted: Energy discharge (-39). 09457_ Sealed Freight Elevator disabled. 09458_ System corrupted: Component data lost. 09459_ Imp. Heavy Siege Treads destroyed. 09460_ Slammed into P-80 Master. 09460_ P-80 Master misfires. 09460_ P-80 Master resets P-80 Master, system corruption cleaned. 09461_ Slammed into P-80 Master. 09466_ P-80 Master resets R-10 Processor, system corruption cleaned. 09470_ Slug penetrates Wall. 09474_ Imp. Heavy Siege Treads destroyed. 09475_ System corrupted: Matter fused (-7). 09475_ Penetrated by Slug. 09475_ Slammed into S-43 Plague. 09476_ Imp. Heavy Siege Treads destroyed. 09476_ Slammed into S-43 Plague. 09476_ Destabilizing: Core damaged (-48). Map ----- +----------------------------------------------------+ | ?????????????????????????????????????????????????? | | ?????????????????????????????????????????????????? | | ?????????????????????????????????????????????????? | | ?????????????????????????????????????????????????? | | ?????????????????????????????????????????????????? | | ?????????????????????????????????????????????????? | | ?????????????????????????????????????????????????? | | ?????????????????????????????????????????????????? | | ?????????????????????????????????????????????????? | | ?????????????????????????????????????????????????? | | ??????????????? ????????????????????????????????? | | ??????????????? #???????????????????????????????? | | ?????????????# #???????????????????????????????? | | +???????????# #???????????????????????????????? | | ????????????# +???????????????????????????????? | | ????????????# #???????????????????????????????? | | #????????????# #???????????????????????????????? | | #?????######## ######+#????????????????????????? | | #?????# #????????????????????????? | | #?????# +????????????????????????? | | #?????# #????????????????????????? | | #?????# #????????????????????????? | | #?????# #????????????????????????? | | #?????# #???????##???????????????? | | #?????# p ##### ###?????????????? | | #?????# p p p @s =Y ????????? | | +?????# u p p sss ????????? | | #?????# ####"" ""### ###### ###+#???????????? | | #?????# #??#""F""#?# #??????? ##???????????????? | | #?????# #??# """ #?#+#?????????????????????????? | | #?????# #??#######? ?????????????????????????? | | ##????# #?????????? ?????????????????????????? | | ###### #????????? ????????????????????????? | | #????????? ????????????????????????? | | ######/#######???# ""Y"???????????????????????? | | ## ! #???#= """"???????????????????????? | | ## #???# ??????????????????????? | | ## #???# ??????????????????????? | | +## #???#######???????????????????????? | | ??# """"" #?????????????????????????????????? | | ??# """""" #?????????????????????????????????? | | ??# """""" #?????????????????????????????????? | | ??# """""" #?????????????????????????????????? | | ??# """""" #?????????????????????????????????? | | ??# #?????????????????????????????????? | | ??# #?????????????????????????????????? | | ??# #?????????????????????????????????? | | ??##############?????????????????????????????????? | | ?????????????????????????????????????????????????? | | ?????????????????????????????????????????????????? | +----------------------------------------------------+ Best States ------------- Heat Dissipation 56 Energy Generation 43 Energy Capacity 600 Matter Stores 300 Matter Capacity 300 Sight Range 22 Robot Scan Range 20 Terrain Scan Range 20 Terrain Scan Density 10 Additional Mass Support 6 Corruption Containment 12 Armor Coverage 600 Resistance: TH 15 Resistance: EM 30 Point Defense Rating 240 Phase Shifting 15 Evasion (%) 76 Targeting Accuracy 28 Melee Accuracy 6 Target Analysis 12 Armor Integrity Analysis 30 Recoil Reduction 5 Offensive Hacking 40 Defensive Hacking 14 Item Schematics ----------------- Lrg. Storage Unit | -9/Materials | Hacked Machine Analyzer | -8/Storage | Hacked Exp. Thermal Shield | -2/Quarantine | Archive Adv. KE Penetrator | -2/Quarantine | Archive Cld. Antigrav System | -2/Quarantine | Archive Hvy. Proton Missile Launcher | -2/Quarantine | Archive Exp. Energy Well | -2/Quarantine | Archive Cld. Field Propulsion Drive | -2/Quarantine | Archive Exp. Myomer Leg | -2/Quarantine | Archive Exp. Core Analyzer | -2/Quarantine | Archive Robot Schematics ------------------ A-27 Freighter | -2/Quarantine | Archive G-73 Enforcer | -2/Quarantine | Archive A-15 Conveyor | -2/Quarantine | Archive Fabricated ------------ Plasma Rifle | x2 | -6/Factory | Preloaded Alien Tech Used ----------------- Phase Armor Achievements -------------- None Challenges ------------ None Game ------ Seed MasterTerrainModule Manual? 0 Play Time 02:31:34 Cumulative 123.3 hours Start 2022.04.06 @ 16:45:26 End 2022.04.06 @ 20:11:19 Sessions 1 Manual Loads 0 Difficulty Rogue Special Mode None Game No. 92 Rogue 74 Adventurer 6 Explorer 12 Win Type - Total 8 Types 5/0/1/1/0/0/1/0/0 Lore% 73 Gallery% 76 Achievement% 60 Wizard Run 0 Options --------- ASCII 0 Keyboard 0 Movement Numpad Keybinds 0 Fullscreen 1 Font 12/Fuzzy Map View 83x54 Tactical HUD 1 Map Filters NONE Filters NONE Steam 1 RUN: ff2c7dc8-411a-49f3-a410-e23d11177bee